fUSD/lending_fUSD_20260525
["ID","MTS","AMOUNT","RATE_DAILY","PERIOD"]
[422927938,1779643851000,-151.0,0.00027397,2]
[422927941,1779643851000,-151.0,0.00027397,2]
[422928000,1779643852000,-536.95609558,0.00027644,10]
[422928003,1779643852000,-649.71,0.00027644,120]
[422928004,1779643852000,-649.71,0.00027644,120]
[422928007,1779643852000,-649.81911375,0.00027644,120]
[422928006,1779643852000,-649.71,0.00027644,120]
[422928008,1779643852000,-500.0,0.00027644,30]
[422928009,1779643852000,-500.0,0.00027644,30]
[422928017,1779643852000,-630.35,0.00027644,120]
[422928013,1779643852000,-384.67354223,0.00027644,30]
[422928011,1779643852000,-500.0,0.00027644,30]
[422928015,1779643852000,-630.35,0.00027644,120]
[422928010,1779643852000,-630.35,0.00027644,120]
[422928014,1779643852000,-630.35,0.00027644,120]
[422928016,1779643852000,-630.35,0.00027644,120]
[422928030,1779643852000,-644.55,0.00027644,2]
[422928019,1779643852000,-579.92,0.00027644,7]
[422928029,1779643852000,-644.55,0.00027644,2]
[422928021,1779643852000,-579.92,0.00027644,7]
[422928001,1779643852000,-649.71,0.00027644,120]
[422928012,1779643852000,-630.35,0.00027644,120]
[422928002,1779643852000,-649.71,0.00027644,120]
[422927988,1779643852000,-500.0,0.00027644,120]
[422927998,1779643852000,-536.81,0.00027644,10]
[422927979,1779643852000,-381.0,0.00027575,2]
[422927984,1779643852000,-151.0,0.00027642,7]
[422927987,1779643852000,-500.0,0.00027644,120]
[422927986,1779643852000,-251.29512864,0.00027642,7]
[422927983,1779643852000,-151.0,0.00027642,7]
[422927980,1779643852000,-394.0,0.00027605,2]
[422927985,1779643852000,-151.0,0.00027642,7]
[422927981,1779643852000,-462.0,0.00027628,2]
[422927982,1779643852000,-394.0,0.00027637,2]
[422927999,1779643852000,-536.81,0.00027644,10]
[422927991,1779643852000,-810.79,0.00027644,120]
[422927993,1779643852000,-810.79,0.00027644,120]
[422927992,1779643852000,-810.79,0.00027644,120]
[422927990,1779643852000,-156.9,0.00027644,120]
[422927995,1779643852000,-811.01216307,0.00027644,120]
[422928005,1779643852000,-649.71,0.00027644,120]
[422927994,1779643852000,-810.79,0.00027644,120]
[422927996,1779643852000,-536.81,0.00027644,10]
[422927997,1779643852000,-536.81,0.00027644,10]
[422928018,1779643852000,-630.37,0.00027644,120]
[422927989,1779643852000,-500.0,0.00027644,120]
[422928022,1779643852000,-579.92,0.00027644,7]
[422928044,1779643852000,-845.21981,0.00027645,2]
[422928025,1779643852000,-580.10304457,0.00027644,7]
[422928049,1779643852000,-1589.0,0.00027796,3]
[422928047,1779643852000,-742.41,0.00027711,7]
[422928053,1779643852000,-1589.0,0.00027833,3]
[422928048,1779643852000,-163.0,0.00027796,3]
[422928057,1779643852000,-742.41,0.00027872,2]
[422928062,1779643852000,-151.0,0.00027997,7]
[422928063,1779643852000,-3955409.12793633,0.00028,120]
[422928055,1779643852000,-174.96,0.00027872,2]
[422928064,1779643852000,-234000.0,0.00028,120]
[422928058,1779643852000,-2312.0,0.00027909,3]
[422928059,1779643852000,-2316.0,0.00027967,3]
[422928065,1779643852000,-727404.69238249,0.00028,120]
[422928061,1779643852000,-350.0,0.00027978,2]
[422928060,1779643852000,-500.0,0.00027977,11]
[422928066,1779643852000,-878.64494776,0.00028,120]
[422928067,1779643852000,-963.76004824,0.00028,120]
[422928069,1779643852000,-1036.65328089,0.00013091,2]
[422928068,1779643852000,-875.48402551,0.00013091,2]
[422928020,1779643852000,-579.92,0.00027644,7]
[422928050,1779643852000,-1589.0,0.00027796,3]
[422928054,1779643852000,-1660.87,0.0002785,2]
[422928056,1779643852000,-227.31,0.00027872,2]
[422928051,1779643852000,-1441.0,0.000278,10]
[422928046,1779643852000,-227.31,0.00027711,7]
[422928027,1779643852000,-644.55,0.00027644,2]
[422928026,1779643852000,-644.55,0.00027644,2]
[422928024,1779643852000,-579.92,0.00027644,7]
[422928028,1779643852000,-644.55,0.00027644,2]
[422928034,1779643852000,-1492.68,0.00027644,2]
[422928031,1779643852000,-644.55,0.00027644,2]
[422928033,1779643852000,-1492.68,0.00027644,2]
[422928036,1779643852000,-1492.68,0.00027644,2]
[422928023,1779643852000,-579.92,0.00027644,7]
[422928032,1779643852000,-644.77820693,0.00027644,2]
[422928038,1779643852000,-3802.903284,0.00027645,2]
[422928039,1779643852000,-270.808129,0.00027645,2]
[422928042,1779643852000,-845.21982,0.00027645,2]
[422928040,1779643852000,-369572.40132385,0.00027645,2]
[422928043,1779643852000,-845.21982,0.00027645,2]
[422928037,1779643852000,-1492.75801849,0.00027644,2]
[422928041,1779643852000,-10548.884733,0.00027645,2]
[422928045,1779643852000,-174.96,0.00027711,7]
[422928052,1779643852000,-2316.0,0.00027833,3]
[422928035,1779643852000,-1492.68,0.00027644,2]
[422928072,1779643853000,-15432.01920439,0.00011099,2]
[422928071,1779643853000,-526.3,0.00011099,2]
[422928070,1779643853000,-11332.40513135,0.00011099,2]
[422928074,1779643853000,-13173.74783576,0.00013091,2]
[422928073,1779643853000,-1437.43,0.00012898,2]
[422928079,1779643853000,-3551.819,0.0002255,2]
[422928077,1779643853000,-29265.51445882,0.0001453,2]
[422928081,1779643853000,-83407.182177,0.00028,120]
[422928080,1779643853000,-3546.0,0.0002555,2]
[422928076,1779643853000,-13324.57224279,0.00013694,2]
[422928078,1779643853000,-245.849484,0.000149,2]
[422928075,1779643853000,-1761.31289937,0.00013694,2]
[422928082,1779643928000,3668.96855,7.945e-05,2]
[422928090,1779644286000,789.43,8.295e-05,2]
[422928089,1779644286000,789.43,7.88e-05,2]
[422928122,1779645031000,-789.43,0.00010368,2]
[422928119,1779645031000,-789.43,9.954e-05,2]
[422928116,1779645031000,-789.43,9.539e-05,2]
[422928114,1779645031000,-335.31456548,9.124e-05,2]
[422928112,1779645031000,-266.42999999,8.709e-05,2]
[422928113,1779645031000,-117.29154552,9.124e-05,2]
[422928111,1779645031000,-523.00000001,8.709e-05,2]
[422928123,1779645031000,-3712.18274509,0.00010704,2]
[422928115,1779645031000,-336.823889,9.124e-05,2]
[422928117,1779645031000,-172.77720647,9.58e-05,2]
[422928124,1779645031000,-3809.40052919,0.00010704,2]
[422928118,1779645031000,-327.22279353,9.58e-05,2]
[422928120,1779645031000,-11041.077236,0.00010263,2]
[422928125,1779645031000,-7792.57525323,0.00010704,2]
[422928121,1779645031000,-1200.0,0.00010315,2]
[422928126,1779645031000,-10167.11767082,0.00010704,2]
[422928127,1779645031000,-2468.05833915,0.00010704,2]
[422928128,1779645031000,-4632.34278382,0.00010704,2]
[422928129,1779645031000,-340.48204018,0.00010704,2]
[422928130,1779645031000,-858.64724402,0.00010704,2]
[422928131,1779645031000,-16129.82949115,0.00010704,2]
[422928147,1779645037000,-300.72668511,0.00010704,2]
[422928148,1779645037000,-472.1,0.00010704,2]
[422928149,1779645037000,-269.29130227,0.00010704,2]
[422928150,1779645037000,-1273.55046578,0.00010704,2]
[422928303,1779645039000,-444.37999366,0.00010704,2]
[422928327,1779645040000,-7898.19,0.00012087,2]
[422928328,1779645040000,-150.0,0.0001214,2]
[422928332,1779645040000,-789.43,0.00012442,2]
[422928339,1779645040000,-150.0,0.00013221,2]
[422928335,1779645040000,-24561.65190213,0.00012966,2]
[422928333,1779645040000,-166.71,0.00012603,2]
[422928331,1779645040000,-157.93,0.00012329,2]
[422928329,1779645040000,-166.71,0.0001214,2]
[422928330,1779645040000,-1598.14,0.00012178,2]
[422928353,1779645040000,-500.0,0.00013698,2]
[422928341,1779645040000,-789.43,0.00013272,2]
[422928344,1779645040000,-30371.3023,0.00013575,2]
[422928345,1779645040000,-2000.0,0.00013575,2]
[422928343,1779645040000,-1598.14,0.00013532,2]
[422928346,1779645040000,-789.43,0.00013686,2]
[422928325,1779645040000,-200.0,0.00011793,2]
[422928351,1779645040000,-500.0,0.00013698,2]
[422928348,1779645040000,-500.0,0.00013698,2]
[422928349,1779645040000,-299.42,0.00013698,2]
[422928334,1779645040000,-789.43,0.00012857,2]
[422928337,1779645040000,-166.71,0.00013066,2]
[422928314,1779645040000,-2895.0,0.00010847,2]
[422928320,1779645040000,-166.71,0.00011215,2]
[422928350,1779645040000,-500.0,0.00013698,2]
[422928304,1779645040000,-1075.38158507,0.00010704,2]
[422928305,1779645040000,-58644.41387146,0.00010704,2]
[422928307,1779645040000,-208.8304494,0.00010727,2]
[422928309,1779645040000,-6671.0,0.00010771,2]
[422928310,1779645040000,-3489.95,0.00010775,2]
[422928306,1779645040000,-654.7,0.00010714,2]
[422928308,1779645040000,-215.34753388,0.00010727,2]
[422928311,1779645040000,-789.43,0.00010783,2]
[422928326,1779645040000,-789.43,0.00012027,2]
[422928313,1779645040000,-1598.14,0.00010825,2]
[422928321,1779645040000,-1002.0,0.00011347,2]
[422928315,1779645040000,-3568.0,0.00010941,2]
[422928322,1779645040000,-789.43,0.00011613,2]
[422928323,1779645040000,-150.0,0.00011658,2]
[422928317,1779645040000,-3720.24365442,0.00011106,2]
[422928316,1779645040000,-2404.22,0.00011015,2]
[422928312,1779645040000,-160.0,0.00010786,2]
[422928324,1779645040000,-166.71,0.00011678,2]
[422928319,1779645040000,-789.43,0.00011198,2]
[422928318,1779645040000,-8610.42,0.00011115,2]
[422928352,1779645040000,-500.0,0.00013698,2]
[422928364,1779645040000,-166.66,0.00013973,2]
[422928347,1779645040000,-500.0,0.00013698,2]
[422928380,1779645040000,-500.0,0.00014623,2]
[422928383,1779645040000,-561.37645628,0.00014623,2]
[422928393,1779645040000,-500.0,0.00014623,2]
[422928394,1779645040000,-500.0,0.00014623,2]
[422928382,1779645040000,-500.0,0.00014623,2]
[422928388,1779645040000,-500.0,0.00014623,2]
[422928387,1779645040000,-500.0,0.00014623,2]
[422928386,1779645040000,-500.0,0.00014623,2]
[422928385,1779645040000,-500.0,0.00014623,2]
[422928375,1779645040000,-500.0,0.00014623,2]
[422928384,1779645040000,-405.9051759,0.00014623,2]
[422928389,1779645040000,-478.67906044,0.00014623,2]
[422928392,1779645040000,-500.0,0.00014623,2]
[422928395,1779645040000,-500.0,0.00014623,2]
[422928397,1779645040000,-500.0,0.00014623,2]
[422928398,1779645040000,-500.0,0.00014623,2]
[422928396,1779645040000,-500.0,0.00014623,2]
[422928399,1779645040000,-500.0,0.00014623,2]
[422928400,1779645040000,-500.0,0.00014623,2]
[422928354,1779645040000,-2501.85,0.00013698,2]
[422928391,1779645040000,-500.0,0.00014623,2]
[422928378,1779645040000,-500.0,0.00014623,2]
[422928390,1779645040000,-500.0,0.00014623,2]
[422928379,1779645040000,-500.0,0.00014623,2]
[422928365,1779645040000,-789.43,0.00014101,2]
[422928376,1779645040000,-500.0,0.00014623,2]
[422928357,1779645040000,-166.66,0.00013836,2]
[422928355,1779645040000,-166.66,0.00013699,2]
[422928368,1779645040000,-500.0,0.00014114,2]
[422928362,1779645040000,-150.0,0.00013841,2]
[422928356,1779645040000,-200.0,0.00013699,2]
[422928369,1779645040000,-166.66,0.00014247,2]
[422928367,1779645040000,-166.66,0.0001411,2]
[422928361,1779645040000,-150.0,0.00013841,2]
[422928366,1779645040000,-500.28174121,0.00014104,2]
[422928363,1779645040000,-270.84985147,0.00013841,2]
[422928359,1779645040000,-150.0,0.00013841,2]
[422928370,1779645040000,-187.33678457,0.00014364,2]
[422928373,1779645040000,-789.43,0.00014516,2]
[422928374,1779645040000,-3771.47128554,0.00014524,2]
[422928372,1779645040000,-166.66,0.00014384,2]
[422928371,1779645040000,-310.94899716,0.00014364,2]
[422928381,1779645040000,-500.0,0.00014623,2]
[422928377,1779645040000,-500.0,0.00014623,2]
[422928438,1779645041000,-167.5,0.0001841,2]
[422928436,1779645041000,-39610.72718933,0.0001799,2]
[422928445,1779645041000,-308.0,0.0002,2]
[422928446,1779645041000,-190.0,0.0002,2]
[422928432,1779645041000,-310.94899716,0.00016519,2]
[422928437,1779645041000,-3771.47128554,0.00018346,2]
[422928435,1779645041000,-24561.65190211,0.00017944,2]
[422928433,1779645041000,-183.06953945,0.00016519,2]
[422928440,1779645041000,-308.0,0.00019,2]
[422928431,1779645041000,-187.33678457,0.00016519,2]
[422928447,1779645041000,-10091.14,0.0002,2]
[422928439,1779645041000,-9999.99,0.00018533,2]
[422928455,1779645041000,-151.0,0.00021,2]
[422928442,1779645041000,-154.97849537,0.00019852,2]
[422928443,1779645041000,-500.0,0.00019885,2]
[422928444,1779645041000,-500.0,0.00019965,2]
[422928448,1779645041000,-157.0,0.0002,2]
[422928449,1779645041000,-151.0,0.0002,2]
[422928452,1779645041000,-167.5,0.00020381,2]
[422928453,1779645041000,-190.0,0.00021,2]
[422928458,1779645041000,-500.0,0.00021273,2]
[422928459,1779645041000,-500.0,0.00021273,2]
[422928451,1779645041000,-3771.47128554,0.00020257,2]
[422928429,1779645041000,-3771.47128554,0.00016435,2]
[422928450,1779645041000,-2501.85,0.00020256,2]
[422928441,1779645041000,-24561.65190211,0.00019603,2]
[422928430,1779645041000,-167.5,0.00016438,2]
[422928406,1779645041000,-427.72766679,0.00014623,2]
[422928425,1779645041000,-789.43,0.00015345,2]
[422928456,1779645041000,-194.32663888,0.00021175,3]
[422928402,1779645041000,-500.0,0.00014623,2]
[422928401,1779645041000,-500.0,0.00014623,2]
[422928403,1779645041000,-500.0,0.00014623,2]
[422928404,1779645041000,-500.0,0.00014623,2]
[422928405,1779645041000,-500.0,0.00014623,2]
[422928413,1779645041000,-500.0,0.00014623,2]
[422928412,1779645041000,-500.0,0.00014623,2]
[422928411,1779645041000,-500.0,0.00014623,2]
[422928409,1779645041000,-500.0,0.00014623,2]
[422928410,1779645041000,-500.0,0.00014623,2]
[422928407,1779645041000,-500.0,0.00014623,2]
[422928427,1779645041000,-1598.14,0.00016238,2]
[422928408,1779645041000,-500.0,0.00014623,2]
[422928414,1779645041000,-500.0,0.00014623,2]
[422928420,1779645041000,-500.0,0.00014623,2]
[422928424,1779645041000,-789.43,0.00014931,2]
[422928416,1779645041000,-500.0,0.00014623,2]
[422928422,1779645041000,-24561.65190211,0.00014625,2]
[422928421,1779645041000,-500.0,0.00014623,2]
[422928418,1779645041000,-500.0,0.00014623,2]
[422928419,1779645041000,-500.0,0.00014623,2]
[422928423,1779645041000,-1598.14,0.00014885,2]
[422928417,1779645041000,-500.0,0.00014623,2]
[422928426,1779645041000,-789.43,0.0001576,2]
[422928428,1779645041000,-24561.65190211,0.00016285,2]
[422928415,1779645041000,-500.0,0.00014623,2]
[422928457,1779645041000,-24561.65190211,0.00021263,2]
[422928434,1779645041000,-299.99,0.00017728,4]
[422928461,1779645041000,-23458.1190298,0.00021274,2]
[422928496,1779645041000,-2501.85,0.00024581,2]
[422928488,1779645041000,-500.0,0.000237,2]
[422928489,1779645041000,-3933.231,0.00023701,4]
[422928490,1779645041000,-229.644,0.00023701,4]
[422928491,1779645041000,-1496.0,0.00024,5]
[422928492,1779645041000,-190.0,0.00024,2]
[422928493,1779645041000,-151.0,0.00024,2]
[422928494,1779645041000,-3771.47128554,0.00024078,2]
[422928498,1779645041000,-150.0,0.00024658,2]
[422928501,1779645041000,-200.0,0.00024858,2]
[422928500,1779645041000,-193.29,0.00024658,2]
[422928499,1779645041000,-1000.0,0.00024658,2]
[422928497,1779645041000,-24561.65190211,0.00024581,2]
[422928505,1779645041000,-625.0,0.00025448,2]
[422928506,1779645041000,-1355.0,0.00025448,2]
[422928507,1779645041000,-1224.0,0.00025448,2]
[422928504,1779645041000,-150.0,0.000251,30]
[422928510,1779645041000,-1000.0,0.000256,2]
[422928509,1779645041000,-298.1,0.00025448,2]
[422928508,1779645041000,-519.0,0.00025448,2]
[422928512,1779645041000,-150.0,0.0002589,2]
[422928511,1779645041000,-500.0,0.00025726,2]
[422928514,1779645041000,-24561.65190211,0.00026241,2]
[422928516,1779645041000,-500.0,0.00026378,2]
[422928513,1779645041000,-3771.47128554,0.00025989,2]
[422928454,1779645041000,-157.0,0.00021,2]
[422928503,1779645041000,-155.0,0.00025,2]
[422928487,1779645041000,-478.28,0.00023595,2]
[422928502,1779645041000,-198.0,0.00025,2]
[422928485,1779645041000,-151.0,0.00023,2]
[422928495,1779645041000,-167.5,0.00024324,2]
[422928471,1779645041000,-201.68822076,0.00022,3]
[422928472,1779645041000,-3771.47128554,0.00022167,2]
[422928470,1779645041000,-151.0,0.00022,2]
[422928460,1779645041000,-981.6087558,0.00021274,2]
[422928462,1779645041000,-1359.0253834,0.00021274,2]
[422928467,1779645041000,-5000.0,0.00021918,2]
[422928468,1779645041000,-190.0,0.00022,2]
[422928465,1779645041000,-1505.44,0.00021798,2]
[422928463,1779645041000,-103447.2106645,0.00021274,2]
[422928464,1779645041000,-172.16331943,0.00021598,3]
[422928466,1779645041000,-500.0,0.000219,2]
[422928473,1779645041000,-167.5,0.00022353,2]
[422928469,1779645041000,-162.0,0.00022,2]
[422928476,1779645041000,-1355.0,0.00022448,2]
[422928475,1779645041000,-3546.0,0.00022448,2]
[422928515,1779645041000,-167.5,0.00026296,2]
[422928480,1779645041000,-276.0,0.00022448,2]
[422928483,1779645041000,-24561.65190211,0.00022922,2]
[422928482,1779645041000,-418.0,0.00022448,2]
[422928479,1779645041000,-519.0,0.00022448,2]
[422928486,1779645041000,-157.93,0.00023425,2]
[422928481,1779645041000,-6060.0,0.00022448,2]
[422928478,1779645041000,-1271.0,0.00022448,2]
[422928474,1779645041000,-626.133,0.00022448,2]
[422928477,1779645041000,-1224.0,0.00022448,2]
[422928484,1779645041000,-190.0,0.00023,2]
[422928532,1779645042000,-1359.0253834,0.00027508,2]
[422928535,1779645042000,-203.42,0.0002755,30]
[422928533,1779645042000,-200.0,0.00027508,2]
[422928539,1779645042000,-203.76,0.0002755,30]
[422928534,1779645042000,-664.05,0.0002755,30]
[422928545,1779645042000,-1589.0,0.00027589,3]
[422928538,1779645042000,-158.56,0.0002755,30]
[422928537,1779645042000,-665.13,0.0002755,30]
[422928540,1779645042000,-1000.0,0.00027555,60]
[422928547,1779645042000,-1000.0,0.00027643,30]
[422928531,1779645042000,-23458.1190298,0.00027508,2]
[422928536,1779645042000,-158.62,0.0002755,30]
[422928530,1779645042000,-500.0,0.00027507,2]
[422928524,1779645042000,-500.0,0.00026945,120]
[422928529,1779645042000,-308.0,0.000275,7]
[422928526,1779645042000,-700.0,0.00027385,2]
[422928525,1779645042000,-150.0,0.00027185,2]
[422928527,1779645042000,-1500.0,0.00027397,2]
[422928517,1779645042000,-5000.0,0.00026514,2]
[422928523,1779645042000,-3881.0,0.000269,2]
[422928522,1779645042000,-5000.0,0.00026614,2]
[422928519,1779645042000,-5000.0,0.00026614,2]
[422928521,1779645042000,-5000.0,0.00026614,2]
[422928520,1779645042000,-5000.0,0.00026614,2]
[422928518,1779645042000,-5000.0,0.00026614,2]
[422928546,1779645042000,-500.0,0.0002763,120]
[422928528,1779645042000,-7261.04,0.00027397,10]
[422928548,1779645042000,-152.0,0.00027661,7]
[422928568,1779645042000,-327.66026881,0.00027872,2]
[422928541,1779645042000,-600.0,0.00027556,60]
[422928570,1779645042000,-158.56,0.00027872,2]
[422928571,1779645042000,-203.76,0.00027872,2]
[422928572,1779645042000,-174.44963887,0.00027899,2]
[422928573,1779645042000,-118.16606472,0.00027899,120]
[422928567,1779645042000,-221.9254348,0.00027872,2]
[422928565,1779645042000,-203.42,0.00027872,2]
[422928542,1779645042000,-500.0,0.00027556,60]
[422928566,1779645042000,-158.62,0.00027872,2]
[422928564,1779645042000,-664.05,0.00027872,2]
[422928561,1779645042000,-1000.0,0.00027799,10]
[422928558,1779645042000,-203.76,0.00027711,7]
[422928562,1779645042000,-2316.0,0.00027833,3]
[422928556,1779645042000,-665.13,0.00027711,7]
[422928569,1779645042000,-115.54429639,0.00027872,2]
[422928554,1779645042000,-203.42,0.00027711,7]
[422928550,1779645042000,-374.39828,0.000277,2]
[422928560,1779645042000,-1589.0,0.00027786,3]
[422928549,1779645042000,-981.6087558,0.0002767,2]
[422928544,1779645042000,-2382.4559662,0.0002758,2]
[422928551,1779645042000,-374.39828,0.000277,2]
[422928553,1779645042000,-664.05,0.00027711,7]
[422928543,1779645042000,-500.0,0.00027579,10]
[422928552,1779645042000,-374.39828,0.000277,2]
[422928559,1779645042000,-2316.0,0.00027786,3]
[422928563,1779645042000,-150.0,0.0002786,2]
[422928557,1779645042000,-158.56,0.00027711,7]
[422928555,1779645042000,-158.62,0.00027711,7]
[422928614,1779645046000,-158.57,0.0002755,30]
[422928603,1779645046000,-931.0,0.00022448,2]
[422928609,1779645046000,-500.0,0.00025541,9]
[422928608,1779645046000,-931.0,0.00025448,2]
[422928606,1779645046000,-193.29,0.00024658,2]
[422928607,1779645046000,-500.0,0.00024703,8]
[422928600,1779645046000,-500.0,0.00020514,4]
[422928605,1779645046000,-500.0,0.00023865,7]
[422928598,1779645046000,-500.0,0.00018838,2]
[422928599,1779645046000,-500.0,0.00019676,3]
[422928602,1779645046000,-500.0,0.00022189,5]
[422928597,1779645046000,-500.0,0.00018,2]
[422928613,1779645046000,-1156.39188825,0.00027397,10]
[422928604,1779645046000,-500.0,0.00023027,6]
[422928611,1779645046000,-1500.0,0.00027397,2]
[422928601,1779645046000,-500.0,0.00021351,5]
[422928612,1779645046000,-4894.47811175,0.00027397,10]
[422928610,1779645046000,-500.0,0.00026378,9]
[422928628,1779645046000,-7146.25832013,0.000279,7]
[422928622,1779645046000,-664.64,0.00027872,2]
[422928621,1779645046000,-158.57,0.00027872,2]
[422928624,1779645046000,-381.83393528,0.00027899,120]
[422928626,1779645046000,-174.44963884,0.000279,2]
[422928623,1779645046000,-203.62,0.00027872,2]
[422928627,1779645046000,-174.44963884,0.000279,2]
[422928620,1779645046000,-203.62,0.00027711,7]
[422928625,1779645046000,-174.44963884,0.00027899,2]
[422928617,1779645046000,-203.62,0.0002755,30]
[422928616,1779645046000,-304.34005173,0.0002755,30]
[422928618,1779645046000,-158.57,0.00027711,7]
[422928615,1779645046000,-360.29994827,0.0002755,30]
[422928619,1779645046000,-664.64,0.00027711,7]
[422928680,1779646231000,-394.0,0.00012086,2]
[422928679,1779646231000,-199.60457296,0.00011692,2]
[422928674,1779646231000,-19.24707852,0.00011296,2]
[422928671,1779646231000,-150.0,0.00011069,2]
[422928673,1779646231000,-150.0,0.00011288,2]
[422928670,1779646231000,-150.0,0.00010958,2]
[422928678,1779646231000,-152.58,0.00011646,2]
[422928669,1779646231000,-151.86712148,0.00010958,2]
[422928677,1779646231000,-297.0,0.00011507,2]
[422928668,1779646231000,-150.0,0.00010629,2]
[422928675,1779646231000,-130.75292148,0.00011296,2]
[422928683,1779646231000,-4518.89549157,0.00012087,2]
[422928672,1779646231000,-150.0,0.00011178,2]
[422928686,1779646231000,-79.773319,0.0001294,2]
[422928676,1779646231000,-150.0,0.00011397,2]
[422928682,1779646231000,-3534.17705582,0.00012087,2]
[422928681,1779646231000,-13834.67294418,0.00012087,2]
[422928693,1779646231000,-208.8304494,0.0001376,2]
[422928695,1779646231000,-476.0,0.00013932,2]
[422928692,1779646231000,-160.0,0.00013757,2]
[422928694,1779646231000,-215.34753388,0.0001376,2]
[422928691,1779646231000,-784.43224218,0.00013601,2]
[422928697,1779646231000,-152.58,0.00014234,2]
[422928688,1779646231000,-673.0,0.00013597,2]
[422928689,1779646231000,-212.3053,0.00013598,2]
[422928685,1779646231000,-72.806681,0.0001294,2]
[422928684,1779646231000,-1800.88450843,0.00012087,2]
[422928687,1779646231000,-1257.15362318,0.00013514,2]
[422928690,1779646231000,-5931.56775782,0.00013601,2]
[422928696,1779646231000,-250.0,0.00014,2]
[422928742,1779646232000,-11514.88,0.00020295,2]
[422928728,1779646232000,-500.0,0.00019937,3]
[422928730,1779646232000,-152.0,0.0002,2]
[422928740,1779646232000,-172.16331943,0.00020258,3]
[422928744,1779646232000,-400.0,0.00020469,2]
[422928726,1779646232000,-2851.19,0.00019882,2]
[422928746,1779646232000,-157.94,0.00020592,2]
[422928760,1779646232000,-500.0,0.000219,2]
[422928745,1779646232000,-1016.7,0.00020585,2]
[422928748,1779646232000,-535.36,0.00020665,2]
[422928759,1779646232000,-500.0,0.00021875,5]
[422928758,1779646232000,-506.36,0.00021797,2]
[422928732,1779646232000,-162.0,0.0002,2]
[422928752,1779646232000,-500.0,0.00020906,4]
[422928750,1779646232000,-200.0,0.00020736,2]
[422928743,1779646232000,-560.91,0.00020423,2]
[422928737,1779646232000,-167.08,0.00020119,2]
[422928716,1779646232000,-500.0,0.00018969,2]
[422928736,1779646232000,-151.0,0.0002,2]
[422928753,1779646232000,-152.0,0.00021,2]
[422928701,1779646232000,-63.27869883,0.000144,2]
[422928699,1779646232000,-145.44130117,0.000144,2]
[422928702,1779646232000,-176.16409663,0.000149,2]
[422928703,1779646232000,-176.16409662,0.000149,2]
[422928705,1779646232000,-152.58,0.00015528,2]
[422928708,1779646232000,-500.0,0.00018,2]
[422928734,1779646232000,-512.48,0.0002,2]
[422928704,1779646232000,-176.16409662,0.000149,2]
[422928714,1779646232000,-12226.51650359,0.00018523,2]
[422928712,1779646232000,-152.58,0.00018116,2]
[422928706,1779646232000,-152.58,0.00016822,2]
[422928720,1779646232000,-152.58,0.0001941,2]
[422928718,1779646232000,-9999.99,0.00019339,2]
[422928722,1779646232000,-167.08,0.00019437,2]
[422928724,1779646232000,-177.75,0.00019507,2]
[422928710,1779646232000,-150.0,0.00018,2]
[422928751,1779646232000,-167.08,0.00020801,2]
[422928763,1779646232000,-152.0,0.00022,2]
[422928747,1779646232000,-200.0,0.0002066,2]
[422928777,1779646232000,-245.377,0.00022448,2]